{"text_format":"3","workbook":"xlsx","n_sheets":3,"sheets":["Rozvrh","Zadávání dat","Vyhledávání jména"],"not_rendered":{"defined_names":5},"read":"whole","date_system":"1900"}

{"sheet":"Rozvrh","index":0,"n_rows":23,"n_cols":9,"rows_kept":23,"merged":[[1,1,2,3]]}
[]
[null,"DENNÍ PLÁN",{"$nulls":4},"Na týden ","Zobrazit rozvrh pro: "]
[{"$nulls":5},{"$f":"WEEKDAY(Týden,1)","v":3},"2012-07-03","Petr"]
[null,null,{"$f":"$F$3=COLUMN(A$1)","v":false},{"$f":"$F$3=COLUMN(B$1)","v":false},true,false,false,false,false]
[null,null,{"$f":"COLUMN(A$1)-MATCH(TRUE,$C$4:$I$4,0)+Týden+1","v":"2012-07-02"},"2012-07-03","2012-07-04","2012-07-05","2012-07-06","2012-07-07","2012-07-08"]
[null,"ČAS","PONDĚLÍ","ÚTERÝ","STŘEDA","ČTVRTEK","PÁTEK","SOBOTA","NEDĚLE"]
[null,"06:00:00",{"$f":"IFERROR(INDEX(tblData[],MATCH(C$5+$B7&ZobrazitJméno,tblData[DATUM A ČAS]&tblData[KDO],0),3),\"\")","v":""},{"$f":"IFERROR(INDEX(tblData[],MATCH(D$5+$B7&ZobrazitJméno,tblData[DATUM A ČAS]&tblData[KDO],0),3),\"\")","v":""},{"$f":"IFERROR(INDEX(tblData[],MATCH(E$5+$B7&ZobrazitJméno,tblData[DATUM A ČAS]&tblData[KDO],0),3),\"\")","v":""},{"$f":"IFERROR(INDEX(tblData[],MATCH(F$5+$B7&ZobrazitJméno,tblData[DATUM A ČAS]&tblData[KDO],0),3),\"\")","v":""},{"$f":"IFERROR(INDEX(tblData[],MATCH(G$5+$B7&ZobrazitJméno,tblData[DATUM A ČAS]&tblData[KDO],0),3),\"\")","v":""},{"$f":"IFERROR(INDEX(tblData[],MATCH(H$5+$B7&ZobrazitJméno,tblData[DATUM A ČAS]&tblData[KDO],0),3),\"\")","v":""},{"$f":"IFERROR(INDEX(tblData[],MATCH(I$5+$B7&ZobrazitJméno,tblData[DATUM A ČAS]&tblData[KDO],0),3),\"\")","v":""}]
[null,"07:00:00",{"$f":"IFERROR(INDEX(tblData[],MATCH(C$5+$B8&ZobrazitJméno,tblData[DATUM A ČAS]&tblData[KDO],0),3),\"\")","v":""},{"$f":"IFERROR(INDEX(tblData[],MATCH(D$5+$B8&ZobrazitJméno,tblData[DATUM A ČAS]&tblData[KDO],0),3),\"\")","v":""},{"$f":"IFERROR(INDEX(tblData[],MATCH(E$5+$B8&ZobrazitJméno,tblData[DATUM A ČAS]&tblData[KDO],0),3),\"\")","v":""},{"$f":"IFERROR(INDEX(tblData[],MATCH(F$5+$B8&ZobrazitJméno,tblData[DATUM A ČAS]&tblData[KDO],0),3),\"\")","v":""},{"$f":"IFERROR(INDEX(tblData[],MATCH(G$5+$B8&ZobrazitJméno,tblData[DATUM A ČAS]&tblData[KDO],0),3),\"\")","v":""},{"$f":"IFERROR(INDEX(tblData[],MATCH(H$5+$B8&ZobrazitJméno,tblData[DATUM A ČAS]&tblData[KDO],0),3),\"\")","v":""},{"$f":"IFERROR(INDEX(tblData[],MATCH(I$5+$B8&ZobrazitJméno,tblData[DATUM A ČAS]&tblData[KDO],0),3),\"\")","v":""}]
[null,"08:00:00",{"$f":"IFERROR(INDEX(tblData[],MATCH(C$5+$B9&ZobrazitJméno,tblData[DATUM A ČAS]&tblData[KDO],0),3),\"\")","v":""},{"$f":"IFERROR(INDEX(tblData[],MATCH(D$5+$B9&ZobrazitJméno,tblData[DATUM A ČAS]&tblData[KDO],0),3),\"\")","v":""},{"$f":"IFERROR(INDEX(tblData[],MATCH(E$5+$B9&ZobrazitJméno,tblData[DATUM A ČAS]&tblData[KDO],0),3),\"\")","v":""},{"$f":"IFERROR(INDEX(tblData[],MATCH(F$5+$B9&ZobrazitJméno,tblData[DATUM A ČAS]&tblData[KDO],0),3),\"\")","v":""},{"$f":"IFERROR(INDEX(tblData[],MATCH(G$5+$B9&ZobrazitJméno,tblData[DATUM A ČAS]&tblData[KDO],0),3),\"\")","v":""},{"$f":"IFERROR(INDEX(tblData[],MATCH(H$5+$B9&ZobrazitJméno,tblData[DATUM A ČAS]&tblData[KDO],0),3),\"\")","v":""},{"$f":"IFERROR(INDEX(tblData[],MATCH(I$5+$B9&ZobrazitJméno,tblData[DATUM A ČAS]&tblData[KDO],0),3),\"\")","v":""}]
[null,"09:00:00",{"$f":"IFERROR(INDEX(tblData[],MATCH(C$5+$B10&ZobrazitJméno,tblData[DATUM A ČAS]&tblData[KDO],0),3),\"\")","v":""},{"$f":"IFERROR(INDEX(tblData[],MATCH(D$5+$B10&ZobrazitJméno,tblData[DATUM A ČAS]&tblData[KDO],0),3),\"\")","v":""},{"$f":"IFERROR(INDEX(tblData[],MATCH(E$5+$B10&ZobrazitJméno,tblData[DATUM A ČAS]&tblData[KDO],0),3),\"\")","v":""},{"$f":"IFERROR(INDEX(tblData[],MATCH(F$5+$B10&ZobrazitJméno,tblData[DATUM A ČAS]&tblData[KDO],0),3),\"\")","v":""},{"$f":"IFERROR(INDEX(tblData[],MATCH(G$5+$B10&ZobrazitJméno,tblData[DATUM A ČAS]&tblData[KDO],0),3),\"\")","v":""},{"$f":"IFERROR(INDEX(tblData[],MATCH(H$5+$B10&ZobrazitJméno,tblData[DATUM A ČAS]&tblData[KDO],0),3),\"\")","v":""},{"$f":"IFERROR(INDEX(tblData[],MATCH(I$5+$B10&ZobrazitJméno,tblData[DATUM A ČAS]&tblData[KDO],0),3),\"\")","v":""}]
[null,"10:00:00",{"$f":"IFERROR(INDEX(tblData[],MATCH(C$5+$B11&ZobrazitJméno,tblData[DATUM A ČAS]&tblData[KDO],0),3),\"\")","v":""},{"$f":"IFERROR(INDEX(tblData[],MATCH(D$5+$B11&ZobrazitJméno,tblData[DATUM A ČAS]&tblData[KDO],0),3),\"\")","v":""},{"$f":"IFERROR(INDEX(tblData[],MATCH(E$5+$B11&ZobrazitJméno,tblData[DATUM A ČAS]&tblData[KDO],0),3),\"\")","v":"Slavnost ve městě"},{"$f":"IFERROR(INDEX(tblData[],MATCH(F$5+$B11&ZobrazitJméno,tblData[DATUM A ČAS]&tblData[KDO],0),3),\"\")","v":""},{"$f":"IFERROR(INDEX(tblData[],MATCH(G$5+$B11&ZobrazitJméno,tblData[DATUM A ČAS]&tblData[KDO],0),3),\"\")","v":""},{"$f":"IFERROR(INDEX(tblData[],MATCH(H$5+$B11&ZobrazitJméno,tblData[DATUM A ČAS]&tblData[KDO],0),3),\"\")","v":""},{"$f":"IFERROR(INDEX(tblData[],MATCH(I$5+$B11&ZobrazitJméno,tblData[DATUM A ČAS]&tblData[KDO],0),3),\"\")","v":""}]
[null,"11:00:00",{"$f":"IFERROR(INDEX(tblData[],MATCH(C$5+$B12&ZobrazitJméno,tblData[DATUM A ČAS]&tblData[KDO],0),3),\"\")","v":""},{"$f":"IFERROR(INDEX(tblData[],MATCH(D$5+$B12&ZobrazitJméno,tblData[DATUM A ČAS]&tblData[KDO],0),3),\"\")","v":""},{"$f":"IFERROR(INDEX(tblData[],MATCH(E$5+$B12&ZobrazitJméno,tblData[DATUM A ČAS]&tblData[KDO],0),3),\"\")","v":""},{"$f":"IFERROR(INDEX(tblData[],MATCH(F$5+$B12&ZobrazitJméno,tblData[DATUM A ČAS]&tblData[KDO],0),3),\"\")","v":""},{"$f":"IFERROR(INDEX(tblData[],MATCH(G$5+$B12&ZobrazitJméno,tblData[DATUM A ČAS]&tblData[KDO],0),3),\"\")","v":"Rodinné grilování"},{"$f":"IFERROR(INDEX(tblData[],MATCH(H$5+$B12&ZobrazitJméno,tblData[DATUM A ČAS]&tblData[KDO],0),3),\"\")","v":""},{"$f":"IFERROR(INDEX(tblData[],MATCH(I$5+$B12&ZobrazitJméno,tblData[DATUM A ČAS]&tblData[KDO],0),3),\"\")","v":""}]
[null,"12:00:00",{"$f":"IFERROR(INDEX(tblData[],MATCH(C$5+$B13&ZobrazitJméno,tblData[DATUM A ČAS]&tblData[KDO],0),3),\"\")","v":""},{"$f":"IFERROR(INDEX(tblData[],MATCH(D$5+$B13&ZobrazitJméno,tblData[DATUM A ČAS]&tblData[KDO],0),3),\"\")","v":""},{"$f":"IFERROR(INDEX(tblData[],MATCH(E$5+$B13&ZobrazitJméno,tblData[DATUM A ČAS]&tblData[KDO],0),3),\"\")","v":""},{"$f":"IFERROR(INDEX(tblData[],MATCH(F$5+$B13&ZobrazitJméno,tblData[DATUM A ČAS]&tblData[KDO],0),3),\"\")","v":""},{"$f":"IFERROR(INDEX(tblData[],MATCH(G$5+$B13&ZobrazitJméno,tblData[DATUM A ČAS]&tblData[KDO],0),3),\"\")","v":""},{"$f":"IFERROR(INDEX(tblData[],MATCH(H$5+$B13&ZobrazitJméno,tblData[DATUM A ČAS]&tblData[KDO],0),3),\"\")","v":""},{"$f":"IFERROR(INDEX(tblData[],MATCH(I$5+$B13&ZobrazitJméno,tblData[DATUM A ČAS]&tblData[KDO],0),3),\"\")","v":""}]
[null,"13:00:00",{"$f":"IFERROR(INDEX(tblData[],MATCH(C$5+$B14&ZobrazitJméno,tblData[DATUM A ČAS]&tblData[KDO],0),3),\"\")","v":""},{"$f":"IFERROR(INDEX(tblData[],MATCH(D$5+$B14&ZobrazitJméno,tblData[DATUM A ČAS]&tblData[KDO],0),3),\"\")","v":""},{"$f":"IFERROR(INDEX(tblData[],MATCH(E$5+$B14&ZobrazitJméno,tblData[DATUM A ČAS]&tblData[KDO],0),3),\"\")","v":""},{"$f":"IFERROR(INDEX(tblData[],MATCH(F$5+$B14&ZobrazitJméno,tblData[DATUM A ČAS]&tblData[KDO],0),3),\"\")","v":""},{"$f":"IFERROR(INDEX(tblData[],MATCH(G$5+$B14&ZobrazitJméno,tblData[DATUM A ČAS]&tblData[KDO],0),3),\"\")","v":""},{"$f":"IFERROR(INDEX(tblData[],MATCH(H$5+$B14&ZobrazitJméno,tblData[DATUM A ČAS]&tblData[KDO],0),3),\"\")","v":""},{"$f":"IFERROR(INDEX(tblData[],MATCH(I$5+$B14&ZobrazitJméno,tblData[DATUM A ČAS]&tblData[KDO],0),3),\"\")","v":""}]
[null,"14:00:00",{"$f":"IFERROR(INDEX(tblData[],MATCH(C$5+$B15&ZobrazitJméno,tblData[DATUM A ČAS]&tblData[KDO],0),3),\"\")","v":""},{"$f":"IFERROR(INDEX(tblData[],MATCH(D$5+$B15&ZobrazitJméno,tblData[DATUM A ČAS]&tblData[KDO],0),3),\"\")","v":""},{"$f":"IFERROR(INDEX(tblData[],MATCH(E$5+$B15&ZobrazitJméno,tblData[DATUM A ČAS]&tblData[KDO],0),3),\"\")","v":""},{"$f":"IFERROR(INDEX(tblData[],MATCH(F$5+$B15&ZobrazitJméno,tblData[DATUM A ČAS]&tblData[KDO],0),3),\"\")","v":""},{"$f":"IFERROR(INDEX(tblData[],MATCH(G$5+$B15&ZobrazitJméno,tblData[DATUM A ČAS]&tblData[KDO],0),3),\"\")","v":""},{"$f":"IFERROR(INDEX(tblData[],MATCH(H$5+$B15&ZobrazitJméno,tblData[DATUM A ČAS]&tblData[KDO],0),3),\"\")","v":""},{"$f":"IFERROR(INDEX(tblData[],MATCH(I$5+$B15&ZobrazitJméno,tblData[DATUM A ČAS]&tblData[KDO],0),3),\"\")","v":""}]
[null,"15:00:00",{"$f":"IFERROR(INDEX(tblData[],MATCH(C$5+$B16&ZobrazitJméno,tblData[DATUM A ČAS]&tblData[KDO],0),3),\"\")","v":""},{"$f":"IFERROR(INDEX(tblData[],MATCH(D$5+$B16&ZobrazitJméno,tblData[DATUM A ČAS]&tblData[KDO],0),3),\"\")","v":""},{"$f":"IFERROR(INDEX(tblData[],MATCH(E$5+$B16&ZobrazitJméno,tblData[DATUM A ČAS]&tblData[KDO],0),3),\"\")","v":""},{"$f":"IFERROR(INDEX(tblData[],MATCH(F$5+$B16&ZobrazitJméno,tblData[DATUM A ČAS]&tblData[KDO],0),3),\"\")","v":""},{"$f":"IFERROR(INDEX(tblData[],MATCH(G$5+$B16&ZobrazitJméno,tblData[DATUM A ČAS]&tblData[KDO],0),3),\"\")","v":""},{"$f":"IFERROR(INDEX(tblData[],MATCH(H$5+$B16&ZobrazitJméno,tblData[DATUM A ČAS]&tblData[KDO],0),3),\"\")","v":""},{"$f":"IFERROR(INDEX(tblData[],MATCH(I$5+$B16&ZobrazitJméno,tblData[DATUM A ČAS]&tblData[KDO],0),3),\"\")","v":""}]
[null,"16:00:00",{"$f":"IFERROR(INDEX(tblData[],MATCH(C$5+$B17&ZobrazitJméno,tblData[DATUM A ČAS]&tblData[KDO],0),3),\"\")","v":""},{"$f":"IFERROR(INDEX(tblData[],MATCH(D$5+$B17&ZobrazitJméno,tblData[DATUM A ČAS]&tblData[KDO],0),3),\"\")","v":"Odjezd na chalupu"},{"$f":"IFERROR(INDEX(tblData[],MATCH(E$5+$B17&ZobrazitJméno,tblData[DATUM A ČAS]&tblData[KDO],0),3),\"\")","v":""},{"$f":"IFERROR(INDEX(tblData[],MATCH(F$5+$B17&ZobrazitJméno,tblData[DATUM A ČAS]&tblData[KDO],0),3),\"\")","v":""},{"$f":"IFERROR(INDEX(tblData[],MATCH(G$5+$B17&ZobrazitJméno,tblData[DATUM A ČAS]&tblData[KDO],0),3),\"\")","v":""},{"$f":"IFERROR(INDEX(tblData[],MATCH(H$5+$B17&ZobrazitJméno,tblData[DATUM A ČAS]&tblData[KDO],0),3),\"\")","v":""},{"$f":"IFERROR(INDEX(tblData[],MATCH(I$5+$B17&ZobrazitJméno,tblData[DATUM A ČAS]&tblData[KDO],0),3),\"\")","v":""}]
[null,"17:00:00",{"$f":"IFERROR(INDEX(tblData[],MATCH(C$5+$B18&ZobrazitJméno,tblData[DATUM A ČAS]&tblData[KDO],0),3),\"\")","v":""},{"$f":"IFERROR(INDEX(tblData[],MATCH(D$5+$B18&ZobrazitJméno,tblData[DATUM A ČAS]&tblData[KDO],0),3),\"\")","v":""},{"$f":"IFERROR(INDEX(tblData[],MATCH(E$5+$B18&ZobrazitJméno,tblData[DATUM A ČAS]&tblData[KDO],0),3),\"\")","v":""},{"$f":"IFERROR(INDEX(tblData[],MATCH(F$5+$B18&ZobrazitJméno,tblData[DATUM A ČAS]&tblData[KDO],0),3),\"\")","v":""},{"$f":"IFERROR(INDEX(tblData[],MATCH(G$5+$B18&ZobrazitJméno,tblData[DATUM A ČAS]&tblData[KDO],0),3),\"\")","v":""},{"$f":"IFERROR(INDEX(tblData[],MATCH(H$5+$B18&ZobrazitJméno,tblData[DATUM A ČAS]&tblData[KDO],0),3),\"\")","v":""},{"$f":"IFERROR(INDEX(tblData[],MATCH(I$5+$B18&ZobrazitJméno,tblData[DATUM A ČAS]&tblData[KDO],0),3),\"\")","v":"Návrat domů"}]
[null,"18:00:00",{"$f":"IFERROR(INDEX(tblData[],MATCH(C$5+$B19&ZobrazitJméno,tblData[DATUM A ČAS]&tblData[KDO],0),3),\"\")","v":"Vzít si léky"},{"$f":"IFERROR(INDEX(tblData[],MATCH(D$5+$B19&ZobrazitJméno,tblData[DATUM A ČAS]&tblData[KDO],0),3),\"\")","v":""},{"$f":"IFERROR(INDEX(tblData[],MATCH(E$5+$B19&ZobrazitJméno,tblData[DATUM A ČAS]&tblData[KDO],0),3),\"\")","v":""},{"$f":"IFERROR(INDEX(tblData[],MATCH(F$5+$B19&ZobrazitJméno,tblData[DATUM A ČAS]&tblData[KDO],0),3),\"\")","v":""},{"$f":"IFERROR(INDEX(tblData[],MATCH(G$5+$B19&ZobrazitJméno,tblData[DATUM A ČAS]&tblData[KDO],0),3),\"\")","v":""},{"$f":"IFERROR(INDEX(tblData[],MATCH(H$5+$B19&ZobrazitJméno,tblData[DATUM A ČAS]&tblData[KDO],0),3),\"\")","v":""},{"$f":"IFERROR(INDEX(tblData[],MATCH(I$5+$B19&ZobrazitJméno,tblData[DATUM A ČAS]&tblData[KDO],0),3),\"\")","v":""}]
[null,"19:00:00",{"$f":"IFERROR(INDEX(tblData[],MATCH(C$5+$B20&ZobrazitJméno,tblData[DATUM A ČAS]&tblData[KDO],0),3),\"\")","v":""},{"$f":"IFERROR(INDEX(tblData[],MATCH(D$5+$B20&ZobrazitJméno,tblData[DATUM A ČAS]&tblData[KDO],0),3),\"\")","v":""},{"$f":"IFERROR(INDEX(tblData[],MATCH(E$5+$B20&ZobrazitJméno,tblData[DATUM A ČAS]&tblData[KDO],0),3),\"\")","v":""},{"$f":"IFERROR(INDEX(tblData[],MATCH(F$5+$B20&ZobrazitJméno,tblData[DATUM A ČAS]&tblData[KDO],0),3),\"\")","v":""},{"$f":"IFERROR(INDEX(tblData[],MATCH(G$5+$B20&ZobrazitJméno,tblData[DATUM A ČAS]&tblData[KDO],0),3),\"\")","v":""},{"$f":"IFERROR(INDEX(tblData[],MATCH(H$5+$B20&ZobrazitJméno,tblData[DATUM A ČAS]&tblData[KDO],0),3),\"\")","v":""},{"$f":"IFERROR(INDEX(tblData[],MATCH(I$5+$B20&ZobrazitJméno,tblData[DATUM A ČAS]&tblData[KDO],0),3),\"\")","v":""}]
[null,"20:00:00",{"$f":"IFERROR(INDEX(tblData[],MATCH(C$5+$B21&ZobrazitJméno,tblData[DATUM A ČAS]&tblData[KDO],0),3),\"\")","v":"Domácí sledování filmu"},{"$f":"IFERROR(INDEX(tblData[],MATCH(D$5+$B21&ZobrazitJméno,tblData[DATUM A ČAS]&tblData[KDO],0),3),\"\")","v":""},{"$f":"IFERROR(INDEX(tblData[],MATCH(E$5+$B21&ZobrazitJméno,tblData[DATUM A ČAS]&tblData[KDO],0),3),\"\")","v":""},{"$f":"IFERROR(INDEX(tblData[],MATCH(F$5+$B21&ZobrazitJméno,tblData[DATUM A ČAS]&tblData[KDO],0),3),\"\")","v":"Ohňostroj"},{"$f":"IFERROR(INDEX(tblData[],MATCH(G$5+$B21&ZobrazitJméno,tblData[DATUM A ČAS]&tblData[KDO],0),3),\"\")","v":""},{"$f":"IFERROR(INDEX(tblData[],MATCH(H$5+$B21&ZobrazitJméno,tblData[DATUM A ČAS]&tblData[KDO],0),3),\"\")","v":""},{"$f":"IFERROR(INDEX(tblData[],MATCH(I$5+$B21&ZobrazitJméno,tblData[DATUM A ČAS]&tblData[KDO],0),3),\"\")","v":""}]
[null,"21:00:00",{"$f":"IFERROR(INDEX(tblData[],MATCH(C$5+$B22&ZobrazitJméno,tblData[DATUM A ČAS]&tblData[KDO],0),3),\"\")","v":""},{"$f":"IFERROR(INDEX(tblData[],MATCH(D$5+$B22&ZobrazitJméno,tblData[DATUM A ČAS]&tblData[KDO],0),3),\"\")","v":""},{"$f":"IFERROR(INDEX(tblData[],MATCH(E$5+$B22&ZobrazitJméno,tblData[DATUM A ČAS]&tblData[KDO],0),3),\"\")","v":""},{"$f":"IFERROR(INDEX(tblData[],MATCH(F$5+$B22&ZobrazitJméno,tblData[DATUM A ČAS]&tblData[KDO],0),3),\"\")","v":""},{"$f":"IFERROR(INDEX(tblData[],MATCH(G$5+$B22&ZobrazitJméno,tblData[DATUM A ČAS]&tblData[KDO],0),3),\"\")","v":""},{"$f":"IFERROR(INDEX(tblData[],MATCH(H$5+$B22&ZobrazitJméno,tblData[DATUM A ČAS]&tblData[KDO],0),3),\"\")","v":""},{"$f":"IFERROR(INDEX(tblData[],MATCH(I$5+$B22&ZobrazitJméno,tblData[DATUM A ČAS]&tblData[KDO],0),3),\"\")","v":""}]
[null,"22:00:00",{"$f":"IFERROR(INDEX(tblData[],MATCH(C$5+$B23&ZobrazitJméno,tblData[DATUM A ČAS]&tblData[KDO],0),3),\"\")","v":""},{"$f":"IFERROR(INDEX(tblData[],MATCH(D$5+$B23&ZobrazitJméno,tblData[DATUM A ČAS]&tblData[KDO],0),3),\"\")","v":""},{"$f":"IFERROR(INDEX(tblData[],MATCH(E$5+$B23&ZobrazitJméno,tblData[DATUM A ČAS]&tblData[KDO],0),3),\"\")","v":""},{"$f":"IFERROR(INDEX(tblData[],MATCH(F$5+$B23&ZobrazitJméno,tblData[DATUM A ČAS]&tblData[KDO],0),3),\"\")","v":""},{"$f":"IFERROR(INDEX(tblData[],MATCH(G$5+$B23&ZobrazitJméno,tblData[DATUM A ČAS]&tblData[KDO],0),3),\"\")","v":""},{"$f":"IFERROR(INDEX(tblData[],MATCH(H$5+$B23&ZobrazitJméno,tblData[DATUM A ČAS]&tblData[KDO],0),3),\"\")","v":""},{"$f":"IFERROR(INDEX(tblData[],MATCH(I$5+$B23&ZobrazitJméno,tblData[DATUM A ČAS]&tblData[KDO],0),3),\"\")","v":""}]

{"sheet":"Zadávání dat","index":1,"n_rows":14,"n_cols":4,"rows_kept":14}
[null,"ZADÁVÁNÍ DAT"]
[]
[null,"DATUM A ČAS","KDO","ÚKOL"]
[null,"2012-07-02T08:00:00","Jana","Návštěva u doktora"]
[null,"2012-07-02T18:00:00","Petr","Vzít si léky"]
[null,"2012-07-02T18:30:00","Petr","Večeře u Novákových"]
[null,"2012-07-02T20:00:00","Petr","Domácí sledování filmu"]
[null,"2012-07-03T16:00:00","Petr","Odjezd na chalupu"]
[null,"2012-07-04T10:00:00","Petr","Slavnost ve městě"]
[null,"2012-07-05T20:00:00","Petr","Ohňostroj"]
[null,"2012-07-06T11:00:00","Petr","Rodinné grilování"]
[null,"2012-07-07","Petr","Piknik u sousedů"]
[null,"2012-07-08T17:00:00","Petr","Návrat domů"]
[null,"2012-07-02T10:00:00","Jana","Lekce hry na klavír"]

{"sheet":"Vyhledávání jména","index":2,"n_rows":132,"n_cols":2,"rows_kept":132,"hidden":true,"merged":[[0,0,0,1]]}
["Z tohoto listu se berou položky do rozevíracího seznamu v buňce H3 na listu Rozvrh. Provádění změn v tomto listu může způsobit chybu."]
["JEDINEČNÝ NÁZEV","ČÍSLO ŘÁDKU"]
[{"$f":"IFERROR(INDEX(PoleKdo,MATCH(0,COUNTIF($A$2:A2,PoleKdo),0)),\"\")","v":"Jana"},{"$f":"IF(A3=\"\",\"\",ROW())","v":3}]
[{"$f":"IFERROR(INDEX(PoleKdo,MATCH(0,COUNTIF($A$2:A3,PoleKdo),0)),\"\")","v":"Petr"},{"$f":"IF(A4=\"\",\"\",ROW())","v":4}]
[{"$f":"IFERROR(INDEX(PoleKdo,MATCH(0,COUNTIF($A$2:A4,PoleKdo),0)),\"\")","v":""},""]
[{"$f":"IFERROR(INDEX(PoleKdo,MATCH(0,COUNTIF($A$2:A5,PoleKdo),0)),\"\")","v":""},""]
[{"$f":"IFERROR(INDEX(PoleKdo,MATCH(0,COUNTIF($A$2:A6,PoleKdo),0)),\"\")","v":""},""]
[{"$f":"IFERROR(INDEX(PoleKdo,MATCH(0,COUNTIF($A$2:A7,PoleKdo),0)),\"\")","v":""},""]
[{"$f":"IFERROR(INDEX(PoleKdo,MATCH(0,COUNTIF($A$2:A8,PoleKdo),0)),\"\")","v":""},""]
[{"$f":"IFERROR(INDEX(PoleKdo,MATCH(0,COUNTIF($A$2:A9,PoleKdo),0)),\"\")","v":""},""]
[{"$f":"IFERROR(INDEX(PoleKdo,MATCH(0,COUNTIF($A$2:A10,PoleKdo),0)),\"\")","v":""},""]
[{"$f":"IFERROR(INDEX(PoleKdo,MATCH(0,COUNTIF($A$2:A11,PoleKdo),0)),\"\")","v":""},""]
[{"$f":"IFERROR(INDEX(PoleKdo,MATCH(0,COUNTIF($A$2:A12,PoleKdo),0)),\"\")","v":""},""]
[{"$f":"IFERROR(INDEX(PoleKdo,MATCH(0,COUNTIF($A$2:A13,PoleKdo),0)),\"\")","v":""},""]
[{"$f":"IFERROR(INDEX(PoleKdo,MATCH(0,COUNTIF($A$2:A14,PoleKdo),0)),\"\")","v":""},""]
[{"$f":"IFERROR(INDEX(PoleKdo,MATCH(0,COUNTIF($A$2:A15,PoleKdo),0)),\"\")","v":""},""]
[{"$f":"IFERROR(INDEX(PoleKdo,MATCH(0,COUNTIF($A$2:A16,PoleKdo),0)),\"\")","v":""},""]
[{"$f":"IFERROR(INDEX(PoleKdo,MATCH(0,COUNTIF($A$2:A17,PoleKdo),0)),\"\")","v":""},""]
[{"$f":"IFERROR(INDEX(PoleKdo,MATCH(0,COUNTIF($A$2:A18,PoleKdo),0)),\"\")","v":""},""]
[{"$f":"IFERROR(INDEX(PoleKdo,MATCH(0,COUNTIF($A$2:A19,PoleKdo),0)),\"\")","v":""},""]
[{"$f":"IFERROR(INDEX(PoleKdo,MATCH(0,COUNTIF($A$2:A20,PoleKdo),0)),\"\")","v":""},""]
[{"$f":"IFERROR(INDEX(PoleKdo,MATCH(0,COUNTIF($A$2:A21,PoleKdo),0)),\"\")","v":""},""]
[{"$f":"IFERROR(INDEX(PoleKdo,MATCH(0,COUNTIF($A$2:A22,PoleKdo),0)),\"\")","v":""},""]
[{"$f":"IFERROR(INDEX(PoleKdo,MATCH(0,COUNTIF($A$2:A23,PoleKdo),0)),\"\")","v":""},""]
[{"$f":"IFERROR(INDEX(PoleKdo,MATCH(0,COUNTIF($A$2:A24,PoleKdo),0)),\"\")","v":""},""]
[{"$f":"IFERROR(INDEX(PoleKdo,MATCH(0,COUNTIF($A$2:A25,PoleKdo),0)),\"\")","v":""},""]
[{"$f":"IFERROR(INDEX(PoleKdo,MATCH(0,COUNTIF($A$2:A26,PoleKdo),0)),\"\")","v":""},""]
[{"$f":"IFERROR(INDEX(PoleKdo,MATCH(0,COUNTIF($A$2:A27,PoleKdo),0)),\"\")","v":""},""]
[{"$f":"IFERROR(INDEX(PoleKdo,MATCH(0,COUNTIF($A$2:A28,PoleKdo),0)),\"\")","v":""},""]
[{"$f":"IFERROR(INDEX(PoleKdo,MATCH(0,COUNTIF($A$2:A29,PoleKdo),0)),\"\")","v":""},""]
[{"$f":"IFERROR(INDEX(PoleKdo,MATCH(0,COUNTIF($A$2:A30,PoleKdo),0)),\"\")","v":""},""]
[{"$f":"IFERROR(INDEX(PoleKdo,MATCH(0,COUNTIF($A$2:A31,PoleKdo),0)),\"\")","v":""},""]
[{"$f":"IFERROR(INDEX(PoleKdo,MATCH(0,COUNTIF($A$2:A32,PoleKdo),0)),\"\")","v":""},""]
[{"$f":"IFERROR(INDEX(PoleKdo,MATCH(0,COUNTIF($A$2:A33,PoleKdo),0)),\"\")","v":""},""]
[{"$f":"IFERROR(INDEX(PoleKdo,MATCH(0,COUNTIF($A$2:A34,PoleKdo),0)),\"\")","v":""},""]
[{"$f":"IFERROR(INDEX(PoleKdo,MATCH(0,COUNTIF($A$2:A35,PoleKdo),0)),\"\")","v":""},""]
[{"$f":"IFERROR(INDEX(PoleKdo,MATCH(0,COUNTIF($A$2:A36,PoleKdo),0)),\"\")","v":""},""]
[{"$f":"IFERROR(INDEX(PoleKdo,MATCH(0,COUNTIF($A$2:A37,PoleKdo),0)),\"\")","v":""},""]
[{"$f":"IFERROR(INDEX(PoleKdo,MATCH(0,COUNTIF($A$2:A38,PoleKdo),0)),\"\")","v":""},""]
[{"$f":"IFERROR(INDEX(PoleKdo,MATCH(0,COUNTIF($A$2:A39,PoleKdo),0)),\"\")","v":""},""]
[{"$f":"IFERROR(INDEX(PoleKdo,MATCH(0,COUNTIF($A$2:A40,PoleKdo),0)),\"\")","v":""},""]
[{"$f":"IFERROR(INDEX(PoleKdo,MATCH(0,COUNTIF($A$2:A41,PoleKdo),0)),\"\")","v":""},""]
[{"$f":"IFERROR(INDEX(PoleKdo,MATCH(0,COUNTIF($A$2:A42,PoleKdo),0)),\"\")","v":""},""]
[{"$f":"IFERROR(INDEX(PoleKdo,MATCH(0,COUNTIF($A$2:A43,PoleKdo),0)),\"\")","v":""},""]
[{"$f":"IFERROR(INDEX(PoleKdo,MATCH(0,COUNTIF($A$2:A44,PoleKdo),0)),\"\")","v":""},""]
[{"$f":"IFERROR(INDEX(PoleKdo,MATCH(0,COUNTIF($A$2:A45,PoleKdo),0)),\"\")","v":""},""]
[{"$f":"IFERROR(INDEX(PoleKdo,MATCH(0,COUNTIF($A$2:A46,PoleKdo),0)),\"\")","v":""},""]
[{"$f":"IFERROR(INDEX(PoleKdo,MATCH(0,COUNTIF($A$2:A47,PoleKdo),0)),\"\")","v":""},""]
[{"$f":"IFERROR(INDEX(PoleKdo,MATCH(0,COUNTIF($A$2:A48,PoleKdo),0)),\"\")","v":""},""]
[{"$f":"IFERROR(INDEX(PoleKdo,MATCH(0,COUNTIF($A$2:A49,PoleKdo),0)),\"\")","v":""},""]
[{"$f":"IFERROR(INDEX(PoleKdo,MATCH(0,COUNTIF($A$2:A50,PoleKdo),0)),\"\")","v":""},""]
[{"$f":"IFERROR(INDEX(PoleKdo,MATCH(0,COUNTIF($A$2:A51,PoleKdo),0)),\"\")","v":""},""]
[{"$f":"IFERROR(INDEX(PoleKdo,MATCH(0,COUNTIF($A$2:A52,PoleKdo),0)),\"\")","v":""},""]
[{"$f":"IFERROR(INDEX(PoleKdo,MATCH(0,COUNTIF($A$2:A53,PoleKdo),0)),\"\")","v":""},""]
[{"$f":"IFERROR(INDEX(PoleKdo,MATCH(0,COUNTIF($A$2:A54,PoleKdo),0)),\"\")","v":""},""]
[{"$f":"IFERROR(INDEX(PoleKdo,MATCH(0,COUNTIF($A$2:A55,PoleKdo),0)),\"\")","v":""},""]
[{"$f":"IFERROR(INDEX(PoleKdo,MATCH(0,COUNTIF($A$2:A56,PoleKdo),0)),\"\")","v":""},""]
[{"$f":"IFERROR(INDEX(PoleKdo,MATCH(0,COUNTIF($A$2:A57,PoleKdo),0)),\"\")","v":""},""]
[{"$f":"IFERROR(INDEX(PoleKdo,MATCH(0,COUNTIF($A$2:A58,PoleKdo),0)),\"\")","v":""},""]
[{"$f":"IFERROR(INDEX(PoleKdo,MATCH(0,COUNTIF($A$2:A59,PoleKdo),0)),\"\")","v":""},""]
[{"$f":"IFERROR(INDEX(PoleKdo,MATCH(0,COUNTIF($A$2:A60,PoleKdo),0)),\"\")","v":""},""]
[{"$f":"IFERROR(INDEX(PoleKdo,MATCH(0,COUNTIF($A$2:A61,PoleKdo),0)),\"\")","v":""},""]
[{"$f":"IFERROR(INDEX(PoleKdo,MATCH(0,COUNTIF($A$2:A62,PoleKdo),0)),\"\")","v":""},""]
[{"$f":"IFERROR(INDEX(PoleKdo,MATCH(0,COUNTIF($A$2:A63,PoleKdo),0)),\"\")","v":""},""]
[{"$f":"IFERROR(INDEX(PoleKdo,MATCH(0,COUNTIF($A$2:A64,PoleKdo),0)),\"\")","v":""},""]
[{"$f":"IFERROR(INDEX(PoleKdo,MATCH(0,COUNTIF($A$2:A65,PoleKdo),0)),\"\")","v":""},""]
[{"$f":"IFERROR(INDEX(PoleKdo,MATCH(0,COUNTIF($A$2:A66,PoleKdo),0)),\"\")","v":""},""]
[{"$f":"IFERROR(INDEX(PoleKdo,MATCH(0,COUNTIF($A$2:A67,PoleKdo),0)),\"\")","v":""},{"$f":"IF(A68=\"\",\"\",ROW())","v":""}]
[{"$f":"IFERROR(INDEX(PoleKdo,MATCH(0,COUNTIF($A$2:A68,PoleKdo),0)),\"\")","v":""},""]
[{"$f":"IFERROR(INDEX(PoleKdo,MATCH(0,COUNTIF($A$2:A69,PoleKdo),0)),\"\")","v":""},""]
[{"$f":"IFERROR(INDEX(PoleKdo,MATCH(0,COUNTIF($A$2:A70,PoleKdo),0)),\"\")","v":""},""]
[{"$f":"IFERROR(INDEX(PoleKdo,MATCH(0,COUNTIF($A$2:A71,PoleKdo),0)),\"\")","v":""},""]
[{"$f":"IFERROR(INDEX(PoleKdo,MATCH(0,COUNTIF($A$2:A72,PoleKdo),0)),\"\")","v":""},""]
[{"$f":"IFERROR(INDEX(PoleKdo,MATCH(0,COUNTIF($A$2:A73,PoleKdo),0)),\"\")","v":""},""]
[{"$f":"IFERROR(INDEX(PoleKdo,MATCH(0,COUNTIF($A$2:A74,PoleKdo),0)),\"\")","v":""},""]
[{"$f":"IFERROR(INDEX(PoleKdo,MATCH(0,COUNTIF($A$2:A75,PoleKdo),0)),\"\")","v":""},""]
[{"$f":"IFERROR(INDEX(PoleKdo,MATCH(0,COUNTIF($A$2:A76,PoleKdo),0)),\"\")","v":""},""]
[{"$f":"IFERROR(INDEX(PoleKdo,MATCH(0,COUNTIF($A$2:A77,PoleKdo),0)),\"\")","v":""},""]
[{"$f":"IFERROR(INDEX(PoleKdo,MATCH(0,COUNTIF($A$2:A78,PoleKdo),0)),\"\")","v":""},""]
[{"$f":"IFERROR(INDEX(PoleKdo,MATCH(0,COUNTIF($A$2:A79,PoleKdo),0)),\"\")","v":""},""]
[{"$f":"IFERROR(INDEX(PoleKdo,MATCH(0,COUNTIF($A$2:A80,PoleKdo),0)),\"\")","v":""},""]
[{"$f":"IFERROR(INDEX(PoleKdo,MATCH(0,COUNTIF($A$2:A81,PoleKdo),0)),\"\")","v":""},""]
[{"$f":"IFERROR(INDEX(PoleKdo,MATCH(0,COUNTIF($A$2:A82,PoleKdo),0)),\"\")","v":""},""]
[{"$f":"IFERROR(INDEX(PoleKdo,MATCH(0,COUNTIF($A$2:A83,PoleKdo),0)),\"\")","v":""},""]
[{"$f":"IFERROR(INDEX(PoleKdo,MATCH(0,COUNTIF($A$2:A84,PoleKdo),0)),\"\")","v":""},""]
[{"$f":"IFERROR(INDEX(PoleKdo,MATCH(0,COUNTIF($A$2:A85,PoleKdo),0)),\"\")","v":""},""]
[{"$f":"IFERROR(INDEX(PoleKdo,MATCH(0,COUNTIF($A$2:A86,PoleKdo),0)),\"\")","v":""},""]
[{"$f":"IFERROR(INDEX(PoleKdo,MATCH(0,COUNTIF($A$2:A87,PoleKdo),0)),\"\")","v":""},""]
[{"$f":"IFERROR(INDEX(PoleKdo,MATCH(0,COUNTIF($A$2:A88,PoleKdo),0)),\"\")","v":""},""]
[{"$f":"IFERROR(INDEX(PoleKdo,MATCH(0,COUNTIF($A$2:A89,PoleKdo),0)),\"\")","v":""},""]
[{"$f":"IFERROR(INDEX(PoleKdo,MATCH(0,COUNTIF($A$2:A90,PoleKdo),0)),\"\")","v":""},""]
[{"$f":"IFERROR(INDEX(PoleKdo,MATCH(0,COUNTIF($A$2:A91,PoleKdo),0)),\"\")","v":""},""]
[{"$f":"IFERROR(INDEX(PoleKdo,MATCH(0,COUNTIF($A$2:A92,PoleKdo),0)),\"\")","v":""},""]
[{"$f":"IFERROR(INDEX(PoleKdo,MATCH(0,COUNTIF($A$2:A93,PoleKdo),0)),\"\")","v":""},""]
[{"$f":"IFERROR(INDEX(PoleKdo,MATCH(0,COUNTIF($A$2:A94,PoleKdo),0)),\"\")","v":""},""]
[{"$f":"IFERROR(INDEX(PoleKdo,MATCH(0,COUNTIF($A$2:A95,PoleKdo),0)),\"\")","v":""},""]
[{"$f":"IFERROR(INDEX(PoleKdo,MATCH(0,COUNTIF($A$2:A96,PoleKdo),0)),\"\")","v":""},""]
[{"$f":"IFERROR(INDEX(PoleKdo,MATCH(0,COUNTIF($A$2:A97,PoleKdo),0)),\"\")","v":""},""]
[{"$f":"IFERROR(INDEX(PoleKdo,MATCH(0,COUNTIF($A$2:A98,PoleKdo),0)),\"\")","v":""},""]
[{"$f":"IFERROR(INDEX(PoleKdo,MATCH(0,COUNTIF($A$2:A99,PoleKdo),0)),\"\")","v":""},""]
[{"$f":"IFERROR(INDEX(PoleKdo,MATCH(0,COUNTIF($A$2:A100,PoleKdo),0)),\"\")","v":""},""]
[{"$f":"IFERROR(INDEX(PoleKdo,MATCH(0,COUNTIF($A$2:A101,PoleKdo),0)),\"\")","v":""},""]
[{"$f":"IFERROR(INDEX(PoleKdo,MATCH(0,COUNTIF($A$2:A102,PoleKdo),0)),\"\")","v":""},""]
[{"$f":"IFERROR(INDEX(PoleKdo,MATCH(0,COUNTIF($A$2:A103,PoleKdo),0)),\"\")","v":""},""]
[{"$f":"IFERROR(INDEX(PoleKdo,MATCH(0,COUNTIF($A$2:A104,PoleKdo),0)),\"\")","v":""},""]
[{"$f":"IFERROR(INDEX(PoleKdo,MATCH(0,COUNTIF($A$2:A105,PoleKdo),0)),\"\")","v":""},""]
[{"$f":"IFERROR(INDEX(PoleKdo,MATCH(0,COUNTIF($A$2:A106,PoleKdo),0)),\"\")","v":""},""]
[{"$f":"IFERROR(INDEX(PoleKdo,MATCH(0,COUNTIF($A$2:A107,PoleKdo),0)),\"\")","v":""},""]
[{"$f":"IFERROR(INDEX(PoleKdo,MATCH(0,COUNTIF($A$2:A108,PoleKdo),0)),\"\")","v":""},""]
[{"$f":"IFERROR(INDEX(PoleKdo,MATCH(0,COUNTIF($A$2:A109,PoleKdo),0)),\"\")","v":""},""]
[{"$f":"IFERROR(INDEX(PoleKdo,MATCH(0,COUNTIF($A$2:A110,PoleKdo),0)),\"\")","v":""},""]
[{"$f":"IFERROR(INDEX(PoleKdo,MATCH(0,COUNTIF($A$2:A111,PoleKdo),0)),\"\")","v":""},""]
[{"$f":"IFERROR(INDEX(PoleKdo,MATCH(0,COUNTIF($A$2:A112,PoleKdo),0)),\"\")","v":""},""]
[{"$f":"IFERROR(INDEX(PoleKdo,MATCH(0,COUNTIF($A$2:A113,PoleKdo),0)),\"\")","v":""},""]
[{"$f":"IFERROR(INDEX(PoleKdo,MATCH(0,COUNTIF($A$2:A114,PoleKdo),0)),\"\")","v":""},""]
[{"$f":"IFERROR(INDEX(PoleKdo,MATCH(0,COUNTIF($A$2:A115,PoleKdo),0)),\"\")","v":""},""]
[{"$f":"IFERROR(INDEX(PoleKdo,MATCH(0,COUNTIF($A$2:A116,PoleKdo),0)),\"\")","v":""},""]
[{"$f":"IFERROR(INDEX(PoleKdo,MATCH(0,COUNTIF($A$2:A117,PoleKdo),0)),\"\")","v":""},""]
[{"$f":"IFERROR(INDEX(PoleKdo,MATCH(0,COUNTIF($A$2:A118,PoleKdo),0)),\"\")","v":""},""]
[{"$f":"IFERROR(INDEX(PoleKdo,MATCH(0,COUNTIF($A$2:A119,PoleKdo),0)),\"\")","v":""},""]
[{"$f":"IFERROR(INDEX(PoleKdo,MATCH(0,COUNTIF($A$2:A120,PoleKdo),0)),\"\")","v":""},""]
[{"$f":"IFERROR(INDEX(PoleKdo,MATCH(0,COUNTIF($A$2:A121,PoleKdo),0)),\"\")","v":""},""]
[{"$f":"IFERROR(INDEX(PoleKdo,MATCH(0,COUNTIF($A$2:A122,PoleKdo),0)),\"\")","v":""},""]
[{"$f":"IFERROR(INDEX(PoleKdo,MATCH(0,COUNTIF($A$2:A123,PoleKdo),0)),\"\")","v":""},""]
[{"$f":"IFERROR(INDEX(PoleKdo,MATCH(0,COUNTIF($A$2:A124,PoleKdo),0)),\"\")","v":""},""]
[{"$f":"IFERROR(INDEX(PoleKdo,MATCH(0,COUNTIF($A$2:A125,PoleKdo),0)),\"\")","v":""},""]
[{"$f":"IFERROR(INDEX(PoleKdo,MATCH(0,COUNTIF($A$2:A126,PoleKdo),0)),\"\")","v":""},""]
[{"$f":"IFERROR(INDEX(PoleKdo,MATCH(0,COUNTIF($A$2:A127,PoleKdo),0)),\"\")","v":""},""]
[{"$f":"IFERROR(INDEX(PoleKdo,MATCH(0,COUNTIF($A$2:A128,PoleKdo),0)),\"\")","v":""},""]
[{"$f":"IFERROR(INDEX(PoleKdo,MATCH(0,COUNTIF($A$2:A129,PoleKdo),0)),\"\")","v":""},""]
[{"$f":"IFERROR(INDEX(PoleKdo,MATCH(0,COUNTIF($A$2:A130,PoleKdo),0)),\"\")","v":""},""]
[{"$f":"IFERROR(INDEX(PoleKdo,MATCH(0,COUNTIF($A$2:A131,PoleKdo),0)),\"\")","v":""},{"$f":"IF(A132=\"\",\"\",ROW())","v":""}]